[Event "EYCC G10-ch 2024"]
[Site "Prague"]
[Date "2024.08.31"]
[Round "9.4"]
[White "Slusarczyk, Agnieszka"]
[Black "Bhaumik, Mehr"]
[Result "1-0"]
[ECO "B20"]
[WhiteElo "1614"]
[BlackElo "1606"]
[Annotator "NA RC COMBH"]
[PlyCount "121"]
[EventDate "2024.08.19"]
[EventType "swiss"]
[EventCountry "CZE"]
[SourceTitle "playchess.com"]
[Source "ChessBase"]
[SourceQuality "1"]
[TimeControl "5400+30"]

1. e4 {[%emt 0:00:34]} c5 {[%emt 0:00:20]} 2. Ne2 {[%emt 0:00:18]} d6 {[%emt 0:00:20]} 3. g3 {[%emt 0:00:18]} Nf6 {[%emt 0:00:25]} 4. Bg2 {[%emt 0:00:45]} a6 {[%emt 0:03:01]} 5. c3 {[%emt 0:01:00]} e6 {[%emt 0:01:44]} 6. O-O {[%emt 0:01:28]} Be7 {[%emt 0:00:27]} 7. d4 {[%emt 0:00:31]} cxd4 {[%emt 0:00:12]} 8. cxd4 {[%emt 0:00:16]} O-O {[%emt 0:00:45]} 9. Nbc3 {[%emt 0:01:21]} Nbd7 {[%emt 0:03:09]} 10. h3 {[%emt 0:01:44]} Rb8 {[%emt 0:03:30]} 11. f4 {[%emt 0:02:15]} b5 {[%emt 0:06:25]} 12. g4 {[%emt 0:07:09]} Nb6 {[%emt 0:06:47]} 13. b3 {[%emt 0:01:38]} b4 {[%emt 0:02:22]} 14. Nb1 {[%emt 0:02:09]} Bb7 {[%emt 0:00:24]} 15. Nd2 {[%emt 0:03:17]} d5 {[%emt 0:03:07]} 16. e5 {[%emt 0:01:11]} Ne4 {[%emt 0:02:18]} 17. Nxe4 {[%emt 0:00:24]} dxe4 {[%emt 0:00:09]} 18. Ng3 {[%emt 0:00:20]} f5 {[%emt 0:02:09]} 19. exf6 {[%emt 0:00:39]} Bxf6 20. Be3 {[%emt 0:01:16]} Nd5 {[%emt 0:02:17]} 21. Bc1 {[%emt 0:08:10]} Nc3 {[%emt 0:01:11]} 22. Qc2 {[%emt 0:00:21]} Bxd4+ {[%emt 0:00:31]} 23. Kh2 {[%emt 0:00:46]} Rc8 {[%emt 0:02:44]} 24. Qd2 {[%emt 0:02:28]} e3 {[%emt 0:02:19]} 25. Qe1 {[%emt 0:00:22]} Bxg2 {[%emt 0:00:23]} 26. Kxg2 {[%emt 0:00:05]} e2 {[%emt 0:00:52]} 27. Rf3 {[%emt 0:03:05]} e5 {[%emt 0:15:27]} 28. Nf5 {[%emt 0:03:57]} e4 {[%emt 0:05:51]} 29. Rg3 {[%emt 0:00:32]} g6 {[%emt 0:02:03]} 30. Nxd4 {[%emt 0:00:58]} Qxd4 {[%emt 0:00:14]} 31. Be3 {[%emt 0:00:03]} Qf6 {[%emt 0:01:12]} 32. a3 {[%emt 0:03:39]} Nd1 {[%emt 0:03:46]} 33. Ra2 {[%emt 0:00:45]} Nc3 {[%emt 0:02:31]} 34. Ra1 {[%emt 0:00:03]} Rfd8 {[%emt 0:04:44]} 35. Bd2 {[%emt 0:00:37]} Rd3 {[%emt 0:02:25]} 36. axb4 {[%emt 0:00:44]} Nd5 {[%emt 0:07:48]} 37. Qxe2 {[%emt 0:01:29]} Qxa1 {[%emt 0:00:59]} 38. Rxd3 {[%emt 0:00:29]} exd3 {[%emt 0:12:12]} 39. Qe6+ {[%emt 0:00:24]} Kg7 {[%emt 0:00:22]} 40. Qd7+ {[%emt 0:01:08]} Ne7 {[%emt 0:00:32]} 41. Qxe7+ {[%emt 0:01:08]} Kh8 {[%emt 0:00:14]} 42. Qd7 {[%emt 0:01:04]} Rg8 {[%emt 0:01:34]} 43. Qxd3 Qb2 {[%emt 0:01:22]} 44. Qc3+ {[%emt 0:00:24]} Qxc3 {[%emt 0:00:11]} 45. Bxc3+ {[%emt 0:00:03]} Rg7 {[%emt 0:00:05]} 46. Bxg7+ {[%emt 0:00:06]} Kxg7 {[%emt 0:00:04]} 47. Kf3 {[%emt 0:00:06]} Kf6 {[%emt 0:00:05]} 48. Ke4 {[%emt 0:00:07]} Ke6 {[%emt 0:00:10]} 49. f5+ {[%emt 0:00:20]} gxf5+ {[%emt 0:00:11]} 50. gxf5+ {[%emt 0:00:06]} Kf6 {[%emt 0:00:05]} 51. Kf4 {[%emt 0:00:16]} h6 {[%emt 0:00:14]} 52. h4 {[%emt 0:00:06]} Kf7 {[%emt 0:00:18]} 53. Ke5 {[%emt 0:00:15]} h5 {[%emt 0:00:21]} 54. f6 {[%emt 0:00:05]} Kf8 {[%emt 0:00:09]} 55. Ke6 {[%emt 0:00:19]} Ke8 {[%emt 0:00:37]} 56. f7+ {[%emt 0:00:06]} Kf8 {[%emt 0:00:11]} 57. Kf6 {[%emt 0:00:29]} a5 {[%emt 0:00:11]} 58. b5 {[%emt 0:00:04]} a4 {[%emt 0:00:12]} 59. b6 {[%emt 0:00:04]} a3 {[%emt 0:00:21]} 60. b7 {[%emt 0:00:02]} a2 {[%emt 0:00:13]} 61. b8=Q# {[%emt 0:00:10]} 1-0

[Event "EYCC G10-ch 2024"]
[Site "Prague"]
[Date "2024.08.31"]
[Round "9.5"]
[White "Karabas, Beren Nisa"]
[Black "Anistoroaei, Maria"]
[Result "0-1"]
[ECO "D00"]
[WhiteElo "1494"]
[BlackElo "1627"]
[Annotator "NA RC COMBH"]
[PlyCount "142"]
[EventDate "2024.08.19"]
[EventType "swiss"]
[EventCountry "CZE"]
[SourceTitle "playchess.com"]
[Source "ChessBase"]
[SourceQuality "1"]
[TimeControl "5400+30"]

1. d4 {[%emt 0:00:01]} d5 {[%emt 0:00:08]} 2. Bf4 {[%emt 0:00:07]} e6 {[%emt 0:00:31]} 3. e3 {[%emt 0:00:17]} Nf6 {[%emt 0:00:06]} 4. Nd2 {[%emt 0:00:06]} c5 {[%emt 0:00:18]} 5. c3 {[%emt 0:00:08]} Nc6 6. Bd3 {[%emt 0:00:15]} Be7 {[%emt 0:00:39]} 7. Ngf3 {[%emt 0:00:22]} O-O {[%emt 0:00:22]} 8. Ne5 {[%emt 0:00:15]} Bd6 {[%emt 0:04:16]} 9. Bg3 {[%emt 0:03:30]} Qc7 {[%emt 0:03:49]} 10. f4 {[%emt 0:00:51]} cxd4 {[%emt 0:03:26]} 11. exd4 {[%emt 0:00:21]} Ne7 {[%emt 0:03:54]} 12. Bf2 {[%emt 0:04:35]} Ng6 {[%emt 0:03:22]} 13. Qf3 {[%emt 0:01:26]} Bd7 {[%emt 0:04:48]} 14. g4 {[%emt 0:01:50]} Ne8 {[%emt 0:03:50]} 15. Be3 {[%emt 0:05:10]} Be7 {[%emt 0:22:02]} 16. Ke2 {[%emt 0:12:09]} Nd6 {[%emt 0:08:20]} 17. h4 {[%emt 0:07:34]} Bb5 {[%emt 0:05:49]} 18. Bxb5 {[%emt 0:07:45]} Nxb5 {[%emt 0:06:01]} 19. h5 {[%emt 0:01:07]} Nxe5 {[%emt 0:04:47]} 20. dxe5 {[%emt 0:00:31]} Qd7 {[%emt 0:04:44]} 21. h6 {[%emt 0:10:37]} g6 {[%emt 0:01:44]} 22. Nb3 {[%emt 0:01:01]} Rac8 {[%emt 0:00:57]} 23. a4 {[%emt 0:00:37]} Qc6 {[%emt 0:03:12]} 24. Na5 {[%emt 0:01:19]} Nxc3+ {[%emt 0:01:02]} 25. bxc3 {[%emt 0:00:08]} Qa6+ {[%emt 0:00:12]} 26. Kf2 {[%emt 0:03:36]} Qxa5 {[%emt 0:00:09]} 27. Bd4 {[%emt 0:03:53]} Bc5 {[%emt 0:00:24]} 28. Ra2 {[%emt 0:03:09]} Bxd4+ {[%emt 0:00:58]} 29. cxd4 {[%emt 0:00:00]} Rc4 {[%emt 0:00:05]} 30. Qe3 {[%emt 0:01:09]} Rfc8 {[%emt 0:03:11]} 31. Rd1 {[%emt 0:00:35]} Rxa4 {[%emt 0:05:14]} 32. Rxa4 {[%emt 0:00:39]} Qxa4 {[%emt 0:00:05]} 33. Rd2 {[%emt 0:00:03]} Qd7 {[%emt 0:06:39]} 34. Qa3 {[%emt 0:01:09]} Qd8 {[%emt 0:00:50]} 35. g5 {[%emt 0:00:53]} a6 {[%emt 0:01:01]} 36. Rb2 {[%emt 0:00:26]} Qc7 {[%emt 0:00:29]} 37. Qb4 {[%emt 0:02:54]} Qc1 {[%emt 0:00:48]} 38. Qd2 {[%emt 0:01:27]} Qxd2+ {[%emt 0:00:23]} 39. Rxd2 {[%emt 0:00:02]} Kf8 {[%emt 0:00:01]} 40. Rb2 {[%emt 0:00:26]} b5 {[%emt 0:00:26]} 41. Ra2 {[%emt 0:00:22]} Rc6 {[%emt 0:00:22]} 42. Ke2 {[%emt 0:00:16]} b4 {[%emt 0:00:37]} 43. Kd3 {[%emt 0:00:17]} Ke7 {[%emt 0:01:25]} 44. Ra4 {[%emt 0:00:43]} Rb6 {[%emt 0:00:18]} 45. Kc2 {[%emt 0:00:10]} Kd7 {[%emt 0:00:22]} 46. Kb3 {[%emt 0:00:22]} Kc6 {[%emt 0:00:16]} 47. Ra2 {[%emt 0:03:38]} Kb5 {[%emt 0:00:28]} 48. Rc2 {[%emt 0:01:13]} Rc6 {[%emt 0:00:05]} 49. Rxc6 {[%emt 0:00:56]} Kxc6 {[%emt 0:00:07]} 50. Kxb4 {[%emt 0:00:05]} Kb6 {[%emt 0:00:10]} 51. Ka4 {[%emt 0:00:13]} a5 {[%emt 0:00:05]} 52. Ka3 {[%emt 0:00:07]} Kb5 {[%emt 0:00:04]} 53. Kb3 {[%emt 0:00:09]} a4+ {[%emt 0:00:06]} 54. Kc3 {[%emt 0:00:18]} a3 {[%emt 0:00:04]} 55. Kb3 {[%emt 0:00:11]} a2 {[%emt 0:00:01]} 56. Kxa2 {[%emt 0:00:10]} Kc4 {[%emt 0:00:02]} 57. Kb2 {[%emt 0:00:09]} Kxd4 {[%emt 0:00:09]} 58. Kc2 {[%emt 0:00:06]} Ke3 {[%emt 0:00:12]} 59. Kd1 {[%emt 0:00:06]} d4 {[%emt 0:00:10]} 60. Ke1 {[%emt 0:00:05]} d3 {[%emt 0:00:16]} 61. Kd1 {[%emt 0:00:21]} d2 {[%emt 0:00:55]} 62. f5 {[%emt 0:00:23]} exf5 {[%emt 0:00:11]} 63. e6 {[%emt 0:00:09]} fxe6 {[%emt 0:00:09]} 64. Kc2 {[%emt 0:00:06]} Ke2 {[%emt 0:00:06]} 65. Kb2 {[%emt 0:00:09]} d1=Q {[%emt 0:00:07]} 66. Ka2 {[%emt 0:00:06]} Qa4+ {[%emt 0:00:13]} 67. Kb2 {[%emt 0:00:12]} Qc4 {[%emt 0:00:08]} 68. Ka3 {[%emt 0:00:09]} Qb5 {[%emt 0:00:07]} 69. Ka2 {[%emt 0:00:04]} Kd2 {[%emt 0:00:08]} 70. Ka3 {[%emt 0:00:03]} Kc3 {[%emt 0:00:14]} 71. Ka2 {[%emt 0:00:02]} Qb2# {[%emt 0:00:06]} 0-1

[Event "EYCC G10-ch 2024"]
[Site "Prague"]
[Date "2024.08.31"]
[Round "9.6"]
[White "Rekhviashvili, Mariam"]
[Black "Paunescu, Aida"]
[Result "1-0"]
[ECO "B01"]
[WhiteElo "1542"]
[BlackElo "1603"]
[Annotator "NA RC COMBH"]
[PlyCount "57"]
[EventDate "2024.08.19"]
[EventType "swiss"]
[EventCountry "CZE"]
[SourceTitle "playchess.com"]
[Source "ChessBase"]
[SourceQuality "1"]
[TimeControl "5400+30"]

1. e4 {[%emt 0:02:17]} d5 {[%emt 0:00:12]} 2. exd5 {[%emt 0:00:09]} Nf6 {[%emt 0:00:13]} 3. d4 {[%emt 0:00:06]} Nxd5 {[%emt 0:00:26]} 4. c4 {[%emt 0:00:06]} Nb6 {[%emt 0:00:30]} 5. Nf3 {[%emt 0:00:17]} g6 {[%emt 0:01:00]} 6. Nc3 {[%emt 0:01:50]} Bg7 {[%emt 0:02:13]} 7. Be2 {[%emt 0:01:42]} Bg4 {[%emt 0:01:44]} 8. h3 {[%emt 0:01:40]} Bxf3 {[%emt 0:00:26]} 9. Bxf3 {[%emt 0:00:30]} c6 {[%emt 0:00:56]} 10. c5 {[%emt 0:05:59]} N6d7 {[%emt 0:23:33]} 11. Be3 {[%emt 0:02:26]} e6 {[%emt 0:01:00]} 12. Ne4 {[%emt 0:00:59]} O-O {[%emt 0:03:42]} 13. O-O {[%emt 0:01:12]} Qc7 {[%emt 0:05:38]} 14. Nd6 {[%emt 0:01:09]} Na6 {[%emt 0:06:19]} 15. Qe2 {[%emt 0:08:06]} e5 {[%emt 0:05:06]} 16. dxe5 {[%emt 0:08:24]} Naxc5 {[%emt 0:01:55]} 17. Bf4 {[%emt 0:09:00]} Ne6 {[%emt 0:00:31]} 18. Bg3 {[%emt 0:02:22]} Nb6 {[%emt 0:02:25]} 19. Rfd1 {[%emt 0:02:09]} Rfd8 {[%emt 0:03:09]} 20. Rac1 {[%emt 0:00:45]} Nc8 {[%emt 0:01:54]} 21. Bg4 {[%emt 0:09:47]} Ne7 {[%emt 0:06:25]} 22. Qc4 {[%emt 0:05:08]} b5 {[%emt 0:10:41]} 23. Qb3 {[%emt 0:04:08]} h5 {[%emt 0:03:10]} 24. Bxe6 {[%emt 0:00:35]} fxe6 {[%emt 0:00:09]} 25. Qxe6+ {[%emt 0:00:48]} Kh7 {[%emt 0:00:09]} 26. Ne4 {[%emt 0:02:17]} Rxd1+ {[%emt 0:01:19]} 27. Rxd1 {[%emt 0:00:11]} Rd8 {[%emt 0:00:15]} 28. Rxd8 {[%emt 0:00:25]} Qxd8 {[%emt 0:00:03]} 29. Ng5+ {[%emt 0:00:07]} 1-0

[Event "EYCC G10-ch 2024"]
[Site "Prague"]
[Date "2024.08.31"]
[Round "9.7"]
[White "Wang, Yi Xuan"]
[Black "Tykalova, Barbora"]
[Result "1-0"]
[ECO "D43"]
[WhiteElo "1734"]
[BlackElo "1580"]
[Annotator "NA RC COMBH"]
[PlyCount "67"]
[EventDate "2024.08.19"]
[EventType "swiss"]
[EventCountry "CZE"]
[SourceTitle "playchess.com"]
[Source "ChessBase"]
[SourceQuality "1"]
[TimeControl "5400+30"]

1. d4 {[%emt 0:00:08]} d5 {[%emt 0:00:06]} 2. c4 {[%emt 0:00:09]} c6 {[%emt 0:00:07]} 3. Nc3 {[%emt 0:00:40]} Nf6 {[%emt 0:00:25]} 4. Nf3 {[%emt 0:01:39]} e6 {[%emt 0:00:09]} 5. cxd5 {[%emt 0:01:32]} exd5 {[%emt 0:01:50]} 6. Bg5 {[%emt 0:00:30]} h6 {[%emt 0:00:45]} 7. Bh4 {[%emt 0:00:27]} Be7 {[%emt 0:01:29]} 8. Qc2 {[%emt 0:01:11]} Nbd7 {[%emt 0:00:40]} 9. e3 {[%emt 0:01:11]} O-O {[%emt 0:01:13]} 10. Bd3 {[%emt 0:00:47]} b6 {[%emt 0:00:50]} 11. O-O {[%emt 0:02:32]} Bb7 {[%emt 0:03:12]} 12. Rac1 {[%emt 0:08:25]} c5 {[%emt 0:03:52]} 13. Qe2 {[%emt 0:01:38]} Rc8 {[%emt 0:03:57]} 14. Bb1 {[%emt 0:01:09]} c4 {[%emt 0:06:49]} 15. Ne5 {[%emt 0:03:30]} Nxe5 {[%emt 0:00:22]} 16. dxe5 {[%emt 0:00:28]} Ne4 {[%emt 0:06:31]} 17. Nxe4 {[%emt 0:09:18]} dxe4 {[%emt 0:00:16]} 18. Rfd1 {[%emt 0:01:44]} Qc7 {[%emt 0:03:17]} 19. Bg3 {[%emt 0:04:39]} Qc6 {[%emt 0:03:05]} 20. Rd4 {[%emt 0:01:40]} Qg6 {[%emt 0:00:59]} 21. Rd7 {[%emt 0:00:36]} Ba6 {[%emt 0:01:57]} 22. Rxe7 {[%emt 0:01:46]} Bb5 {[%emt 0:02:51]} 23. h3 {[%emt 0:01:41]} a6 {[%emt 0:01:07]} 24. a4 {[%emt 0:01:17]} Bxa4 {[%emt 0:00:31]} 25. Qg4 {[%emt 0:03:24]} Qc6 {[%emt 0:01:08]} 26. Qxe4 {[%emt 0:03:18]} Qxe4 {[%emt 0:01:12]} 27. Bxe4 {[%emt 0:00:10]} Rfd8 {[%emt 0:00:50]} 28. Bb7 {[%emt 0:00:35]} Rc5 {[%emt 0:00:25]} 29. Bxa6 {[%emt 0:02:05]} Ra8 {[%emt 0:01:59]} 30. Bb7 {[%emt 0:01:13]} Ra7 {[%emt 0:00:18]} 31. Ra1 {[%emt 0:06:05]} Kf8 {[%emt 0:00:26]} 32. Rd7 {[%emt 0:00:48]} Rca5 {[%emt 0:02:52]} 33. Rc7 {[%emt 0:01:10]} Ke8 {[%emt 0:07:42]} 34. Bc6+ {[%emt 0:02:29]} 1-0

[Event "EYCC G10-ch 2024"]
[Site "Prague"]
[Date "2024.08.31"]
[Round "9.8"]
[White "Macakova, Bianka"]
[Black "Bakhshi, Rana"]
[Result "0-1"]
[ECO "B70"]
[WhiteElo "1568"]
[BlackElo "1732"]
[Annotator "NA RC COMBH"]
[PlyCount "92"]
[EventDate "2024.08.19"]
[EventType "swiss"]
[EventCountry "CZE"]
[SourceTitle "playchess.com"]
[Source "ChessBase"]
[SourceQuality "1"]
[TimeControl "5400+30"]

1. e4 {[%emt 0:00:03]} c5 {[%emt 0:00:58]} 2. Nf3 {[%emt 0:01:49]} d6 {[%emt 0:01:13]} 3. d4 {[%emt 0:01:33]} cxd4 {[%emt 0:00:37]} 4. Nxd4 {[%emt 0:01:37]} Nf6 {[%emt 0:02:25]} 5. Nc3 {[%emt 0:02:00]} g6 {[%emt 0:02:07]} 6. Bc4 {[%emt 0:11:02]} Nc6 {[%emt 0:03:31]} 7. Be3 {[%emt 0:27:19]} h5 {[%emt 0:14:09]} 8. Qd2 {[%emt 0:27:25]} Bd7 {[%emt 0:08:00]} 9. f3 {[%emt 0:08:12]} Bg7 {[%emt 0:04:15]} 10. O-O-O {[%emt 0:03:32]} Na5 {[%emt 0:04:28]} 11. Bb5 {[%emt 0:06:24]} Bxb5 {[%emt 0:06:18]} 12. Ndxb5 {[%emt 0:02:11]} Nc4 {[%emt 0:00:53]} 13. Qd3 {[%emt 0:02:10]} Nxe3 {[%emt 0:02:00]} 14. Qxe3 {[%emt 0:00:59]} a6 {[%emt 0:05:51]} 15. Na3 {[%emt 0:01:02]} b5 {[%emt 0:03:45]} 16. Nd5 {[%emt 0:00:28]} Nxd5 {[%emt 0:03:41]} 17. Rxd5 {[%emt 0:00:32]} Rc8 {[%emt 0:02:11]} 18. Rhd1 {[%emt 0:00:27]} Qc7 {[%emt 0:03:12]} 19. R1d2 {[%emt 0:00:34]} b4 {[%emt 0:07:44]} 20. Nb1 {[%emt 0:00:34]} a5 {[%emt 0:02:12]} 21. Kd1 {[%emt 0:00:29]} Bxb2 {[%emt 0:00:42]} 22. Re2 {[%emt 0:00:33]} a4 {[%emt 0:01:22]} 23. Ke1 {[%emt 0:00:23]} Qc4 {[%emt 0:01:48]} 24. Kf1 {[%emt 0:00:40]} Qxa2 {[%emt 0:02:09]} 25. Re1 {[%emt 0:00:21]} Rxc2 {[%emt 0:01:29]} 26. Re2 {[%emt 0:00:32]} Qxb1+ {[%emt 0:01:27]} 27. Kf2 {[%emt 0:00:20]} Rxe2+ {[%emt 0:00:36]} 28. Qxe2 {[%emt 0:00:20]} O-O {[%emt 0:02:41]} 29. g4 {[%emt 0:00:54]} h4 {[%emt 0:01:20]} 30. f4 {[%emt 0:00:26]} Bc3 {[%emt 0:00:24]} 31. f5 {[%emt 0:00:35]} Qb2 {[%emt 0:00:11]} 32. Kf3 {[%emt 0:00:21]} Qxe2+ {[%emt 0:00:21]} 33. Kxe2 {[%emt 0:00:11]} a3 {[%emt 0:00:08]} 34. Kd3 {[%emt 0:00:26]} Ra8 {[%emt 0:00:11]} 35. Kc2 {[%emt 0:00:08]} a2 {[%emt 0:00:09]} 36. fxg6 {[%emt 0:00:17]} a1=Q {[%emt 0:00:18]} 37. gxf7+ {[%emt 0:00:23]} Kxf7 {[%emt 0:00:07]} 38. Rf5+ {[%emt 0:00:09]} Ke8 {[%emt 0:00:06]} 39. Rf8+ {[%emt 0:00:24]} Kxf8 {[%emt 0:00:06]} 40. e5 {[%emt 0:00:28]} Ra2+ {[%emt 0:00:27]} 41. Kb3 {[%emt 0:00:37]} Ra3+ {[%emt 0:00:53]} 42. Kc4 {[%emt 0:00:12]} Qf1+ {[%emt 0:00:08]} 43. Kd5 {[%emt 0:00:05]} Ra5+ {[%emt 0:00:23]} 44. Kc6 {[%emt 0:00:11]} Qb5+ {[%emt 0:00:17]} 45. Kc7 {[%emt 0:00:10]} Ra7+ {[%emt 0:00:05]} 46. Kc8 {[%emt 0:00:09]} Qe8# {[%emt 0:00:07]} 0-1

[Event "EYCC G10-ch 2024"]
[Site "Prague"]
[Date "2024.08.31"]
[Round "9.9"]
[White "Stoica, Melina-Theodora"]
[Black "Hatuk, Neris"]
[Result "0-1"]
[ECO "D43"]
[WhiteElo "1576"]
[BlackElo "1671"]
[Annotator "NA RC COMBH"]
[PlyCount "92"]
[EventDate "2024.08.19"]
[EventType "swiss"]
[EventCountry "CZE"]
[SourceTitle "playchess.com"]
[Source "ChessBase"]
[SourceQuality "1"]
[TimeControl "5400+30"]

1. d4 {[%emt 0:00:02]} Nf6 {[%emt 0:00:05]} 2. Nf3 {[%emt 0:00:10]} d5 {[%emt 0:01:04]} 3. c4 {[%emt 0:00:08]} e6 {[%emt 0:00:07]} 4. Nc3 {[%emt 0:00:06]} c6 {[%emt 0:00:48]} 5. Bf4 {[%emt 0:02:56]} Bb4 {[%emt 0:01:18]} 6. Qb3 {[%emt 0:12:36]} a5 {[%emt 0:07:58]} 7. a3 {[%emt 0:00:37]} Bxc3+ {[%emt 0:00:06]} 8. Qxc3 {[%emt 0:00:11]} Ne4 {[%emt 0:02:44]} 9. Qc2 {[%emt 0:02:01]} g5 {[%emt 0:04:44]} 10. Be5 {[%emt 0:09:54]} f6 {[%emt 0:01:52]} 11. Bg3 {[%emt 0:01:34]} Nd7 {[%emt 0:05:07]} 12. e3 {[%emt 0:04:27]} h5 {[%emt 0:03:15]} 13. Nd2 {[%emt 0:09:35]} f5 {[%emt 0:01:32]} 14. Nxe4 {[%emt 0:06:36]} fxe4 {[%emt 0:00:13]} 15. h3 {[%emt 0:03:28]} Qf6 {[%emt 0:06:10]} 16. Be2 {[%emt 0:03:08]} h4 {[%emt 0:02:33]} 17. Bc7 {[%emt 0:10:33]} O-O {[%emt 0:05:23]} 18. O-O {[%emt 0:01:20]} e5 {[%emt 0:02:01]} 19. dxe5 {[%emt 0:13:08]} Nxe5 {[%emt 0:00:21]} 20. cxd5 {[%emt 0:01:04]} cxd5 {[%emt 0:07:58]} 21. Qc5 {[%emt 0:03:12]} Be6 {[%emt 0:03:47]} 22. Bxa5 {[%emt 0:09:03]} Rfc8 {[%emt 0:02:05]} 23. Bc7 {[%emt 0:01:38]} Qf7 {[%emt 0:14:10]} 24. Rac1 {[%emt 0:00:55]} Nc4 {[%emt 0:02:42]} 25. Bxc4 {[%emt 0:01:19]} Rxc7 {[%emt 0:02:36]} 26. Qb5 {[%emt 0:00:09]} Rxc4 {[%emt 0:00:40]} 27. Rxc4 {[%emt 0:00:09]} dxc4 {[%emt 0:00:06]} 28. Qxg5+ {[%emt 0:00:11]} Qg7 {[%emt 0:00:52]} 29. Qxh4 {[%emt 0:00:17]} Qg6 {[%emt 0:04:39]} 30. Rd1 {[%emt 0:01:07]} Bf7 {[%emt 0:04:46]} 31. Rd8+ {[%emt 0:00:26]} Rxd8 {[%emt 0:00:06]} 32. Qxd8+ {[%emt 0:00:06]} Kg7 {[%emt 0:00:06]} 33. Qd4+ {[%emt 0:00:33]} Kh7 {[%emt 0:00:04]} 34. Qd7 {[%emt 0:00:27]} b6 {[%emt 0:00:08]} 35. Qd8 {[%emt 0:00:55]} Kg7 {[%emt 0:05:23]} 36. Qc7 {[%emt 0:00:37]} Qf6 {[%emt 0:00:28]} 37. Qb7 {[%emt 0:00:53]} Qxb2 {[%emt 0:00:50]} 38. Qxe4 {[%emt 0:00:10]} Qf6 {[%emt 0:00:26]} 39. Qg4+ {[%emt 0:01:07]} Kh8 {[%emt 0:00:38]} 40. Qc8+ {[%emt 0:00:55]} Kh7 {[%emt 0:00:07]} 41. Qc7 {[%emt 0:00:36]} c3 {[%emt 0:00:28]} 42. Kf1 {[%emt 0:01:04]} Kh6 {[%emt 0:00:48]} 43. Ke2 {[%emt 0:00:59]} Kg6 {[%emt 0:03:36]} 44. Kd3 {[%emt 0:01:06]} Qf5+ {[%emt 0:00:52]} 45. Kxc3 {[%emt 0:00:24]} Qa5+ {[%emt 0:00:09]} 46. Kb2 {[%emt 0:00:38]} Qb5+ {[%emt 0:00:12]} 0-1

[Event "EYCC G10-ch 2024"]
[Site "Prague"]
[Date "2024.08.31"]
[Round "9.10"]
[White "Serradell Munoz, Silvia"]
[Black "Milojevic, Dunja"]
[Result "0-1"]
[ECO "B20"]
[WhiteElo "1619"]
[BlackElo "1568"]
[Annotator "NA RC COMBH"]
[PlyCount "72"]
[EventDate "2024.08.19"]
[EventType "swiss"]
[EventCountry "CZE"]
[SourceTitle "playchess.com"]
[Source "ChessBase"]
[SourceQuality "1"]
[TimeControl "5400+30"]

1. e4 {[%emt 0:00:12]} c5 {[%emt 0:00:15]} 2. b3 {[%emt 0:00:21]} e6 {[%emt 0:00:39]} 3. Bb2 {[%emt 0:01:31]} Nc6 {[%emt 0:01:10]} 4. f4 {[%emt 0:00:45]} d5 {[%emt 0:00:22]} 5. exd5 {[%emt 0:01:42]} exd5 {[%emt 0:00:12]} 6. Nf3 {[%emt 0:00:32]} Nf6 {[%emt 0:01:54]} 7. Bb5 {[%emt 0:01:07]} a6 {[%emt 0:01:09]} 8. Bxc6+ {[%emt 0:00:26]} bxc6 {[%emt 0:00:06]} 9. O-O {[%emt 0:00:19]} Be7 {[%emt 0:00:39]} 10. Ne5 {[%emt 0:00:48]} Qc7 {[%emt 0:01:08]} 11. Re1 {[%emt 0:01:22]} Be6 {[%emt 0:04:13]} 12. Nc3 {[%emt 0:05:01]} O-O {[%emt 0:03:14]} 13. Qf3 {[%emt 0:01:03]} Bd6 {[%emt 0:02:07]} 14. h3 {[%emt 0:03:47]} Nd7 {[%emt 0:07:35]} 15. Nxd7 {[%emt 0:01:51]} Bxd7 {[%emt 0:00:46]} 16. Rf1 {[%emt 0:01:04]} f6 {[%emt 0:02:09]} 17. Ne2 {[%emt 0:02:46]} Rfe8 {[%emt 0:03:45]} 18. Ng3 {[%emt 0:01:08]} Be6 {[%emt 0:03:11]} 19. Nh5 {[%emt 0:02:36]} Bf7 {[%emt 0:11:58]} 20. Ng3 {[%emt 0:03:04]} Qd7 {[%emt 0:04:44]} 21. Rae1 {[%emt 0:03:32]} a5 {[%emt 0:02:58]} 22. a4 {[%emt 0:04:39]} Rab8 {[%emt 0:02:26]} 23. Bc3 {[%emt 0:02:01]} Bc7 {[%emt 0:02:04]} 24. d3 {[%emt 0:02:14]} Bb6 {[%emt 0:02:15]} 25. Kh1 {[%emt 0:00:48]} c4 {[%emt 0:01:06]} 26. dxc4 {[%emt 0:01:20]} dxc4 {[%emt 0:00:47]} 27. Rd1 {[%emt 0:00:36]} Qc8 {[%emt 0:01:07]} 28. bxc4 {[%emt 0:04:01]} Re3 {[%emt 0:01:15]} 29. Qf2 {[%emt 0:02:02]} Rxc3 {[%emt 0:00:33]} 30. Qe1 {[%emt 0:04:11]} Rxc4 {[%emt 0:00:28]} 31. Qd2 {[%emt 0:01:26]} Qd8 {[%emt 0:00:46]} 32. Qe2 {[%emt 0:01:11]} Rd4 {[%emt 0:00:40]} 33. Rde1 {[%emt 0:00:52]} Bc4 {[%emt 0:01:10]} 34. Qg4 {[%emt 0:00:16]} Bxf1 {[%emt 0:00:24]} 35. Nf5 {[%emt 0:00:07]} Bxg2+ {[%emt 0:01:11]} 36. Kxg2 {[%emt 0:00:39]} Rd2+ {[%emt 0:00:24]} 0-1

[Event "EYCC G10-ch 2024"]
[Site "Prague"]
[Date "2024.08.31"]
[Round "9.11"]
[White "Horodna, Anna"]
[Black "Goralik, Zuzanna"]
[Result "1-0"]
[ECO "C00"]
[WhiteElo "1603"]
[BlackElo "1459"]
[Annotator "NA RC COMBH"]
[PlyCount "65"]
[EventDate "2024.08.19"]
[EventType "swiss"]
[EventCountry "CZE"]
[SourceTitle "playchess.com"]
[Source "ChessBase"]
[SourceQuality "1"]
[TimeControl "5400+30"]

1. e4 {[%emt 0:00:08]} e6 {[%emt 0:00:07]} 2. d4 {[%emt 0:00:15]} d5 {[%emt 0:00:22]} 3. Bd3 {[%emt 0:00:49]} dxe4 {[%emt 0:01:01]} 4. Bxe4 {[%emt 0:00:20]} Nf6 {[%emt 0:00:29]} 5. Bf3 {[%emt 0:01:14]} c5 {[%emt 0:00:42]} 6. Ne2 {[%emt 0:00:57]} Nc6 {[%emt 0:00:59]} 7. Be3 {[%emt 0:00:59]} cxd4 {[%emt 0:00:41]} 8. Nxd4 {[%emt 0:00:19]} Ne5 {[%emt 0:00:37]} 9. Nc3 {[%emt 0:01:16]} a6 {[%emt 0:00:59]} 10. a3 {[%emt 0:01:04]} Bd6 {[%emt 0:04:37]} 11. Qe2 {[%emt 0:17:44]} Nxf3+ {[%emt 0:02:14]} 12. gxf3 {[%emt 0:00:30]} Qc7 {[%emt 0:06:06]} 13. O-O-O {[%emt 0:02:49]} Bd7 {[%emt 0:02:34]} 14. Rd3 {[%emt 0:05:50]} O-O-O {[%emt 0:11:40]} 15. Rhd1 {[%emt 0:12:54]} Bxh2 {[%emt 0:06:52]} 16. Ne4 {[%emt 0:03:13]} Nd5 {[%emt 0:07:02]} 17. Nc5 {[%emt 0:07:27]} Be5 {[%emt 0:14:05]} 18. Rb3 {[%emt 0:04:03]} Bxd4 {[%emt 0:11:51]} 19. Bxd4 {[%emt 0:01:59]} Bb5 {[%emt 0:01:34]} 20. c4 {[%emt 0:07:43]} Nf4 {[%emt 0:01:33]} 21. Qe3 {[%emt 0:03:27]} Bxc4 {[%emt 0:06:09]} 22. Rxb7 {[%emt 0:00:59]} Ne2+ {[%emt 0:02:55]} 23. Kb1 {[%emt 0:03:26]} Qd6 {[%emt 0:08:03]} 24. Qe4 {[%emt 0:03:33]} Bd5 {[%emt 0:03:41]} 25. Qxe2 {[%emt 0:00:23]} Bxb7 {[%emt 0:00:13]} 26. Rc1 {[%emt 0:00:43]} Qd5 {[%emt 0:04:59]} 27. Nxe6+ {[%emt 0:03:16]} Kb8 {[%emt 0:00:53]} 28. Be5+ {[%emt 0:00:35]} Rd6 {[%emt 0:00:37]} 29. Rd1 {[%emt 0:01:03]} Qxe6 {[%emt 0:00:29]} 30. Rxd6 {[%emt 0:00:39]} Qf5+ {[%emt 0:00:14]} 31. Ka1 {[%emt 0:00:35]} Ka8 {[%emt 0:00:30]} 32. Rxa6+ {[%emt 0:00:12]} Bxa6 {[%emt 0:00:29]} 33. Qxa6# {[%emt 0:00:05]} 1-0